[Event "December 5 Early 2023"]
[Site "https://www.chess.com"]
[Date "2023.12.05"]
[Round "2"]
[White "Lehtosaari, Mauri"]
[Black "Ernst, Luca"]
[Result "1/2-1/2"]
[Board "201"]
[TimeControl "180+1"]
[WhiteFideId "501999"]
[BlackFideId "45117055"]
[WhiteElo "2490"]
[BlackElo "2246"]
[WhiteTeam "FIN"]
[BlackTeam "FRA"]
[WhiteClock "0:00:09"]
[BlackClock "0:00:02"]

1. d4 {[%clk 0:03:00]}  Nf6 {[%clk 0:02:57]} 2. c4 {[%clk 0:03:00]}  g6 {[%clk 0:02:55]} 3. Nc3 {[%clk 0:03:00]}  d5 {[%clk 0:02:56]} 4. Nf3 {[%clk 0:03:00]}  Bg7 {[%clk 0:02:55]} 5. Bg5 {[%clk 0:03:01]}  c6 {[%clk 0:02:34]} 6. e3 {[%clk 0:02:59]}  O-O {[%clk 0:02:34]} 7. Be2 {[%clk 0:02:59]}  h6 {[%clk 0:02:34]} 8. Bxf6 {[%clk 0:02:46]}  Bxf6 {[%clk 0:02:34]} 9. cxd5 {[%clk 0:02:47]}  cxd5 {[%clk 0:02:27]} 10. Qb3 {[%clk 0:02:47]}  e6 {[%clk 0:02:19]} 11. O-O {[%clk 0:02:45]}  Nc6 {[%clk 0:02:17]} 12. Rfc1 {[%clk 0:02:42]}  Na5 {[%clk 0:02:09]} 13. Qd1 {[%clk 0:02:37]}  Bd7 {[%clk 0:02:08]} 14. Na4 {[%clk 0:02:00]}  Rc8 {[%clk 0:01:41]} 15. Nc5 {[%clk 0:01:55]}  b6 {[%clk 0:01:33]} 16. Nxd7 {[%clk 0:01:40]}  Qxd7 {[%clk 0:01:34]} 17. Ba6 {[%clk 0:01:39]}  Rxc1 {[%clk 0:01:08]} 18. Rxc1 {[%clk 0:01:39]}  b5 {[%clk 0:01:00]} 19. Qd3 {[%clk 0:01:17]}  Nc4 {[%clk 0:01:00]} 20. b3 {[%clk 0:01:16]}  Nd6 {[%clk 0:00:59]} 21. Qc3 {[%clk 0:01:07]}  Rb8 {[%clk 0:00:43]} 22. Qc6 {[%clk 0:01:01]}  Qd8 {[%clk 0:00:29]} 23. Qc7 {[%clk 0:00:29]}  Rb6 {[%clk 0:00:07]} 24. Qxa7 {[%clk 0:00:29]}  Qb8 {[%clk 0:00:04]} 25. Qxb8+ {[%clk 0:00:28]}  Rxb8 {[%clk 0:00:05]} 26. a4 {[%clk 0:00:20]}  Kf8 {[%clk 0:00:03]} 27. g3 {[%clk 0:00:17]}  Ke7 {[%clk 0:00:03]} 28. Rc7+ {[%clk 0:00:16]}  Kd8 {[%clk 0:00:02]} 29. Rc1 {[%clk 0:00:09]}  bxa4 {[%clk 0:00:02]} 30. bxa4 {[%clk 0:00:10]}  Rb2 {[%clk 0:00:02]} 31. Ne5 {[%clk 0:00:08]}  Bxe5 {[%clk 0:00:02]} 32. dxe5 {[%clk 0:00:09]}  Ne4 {[%clk 0:00:02]} 33. Rc8+ {[%clk 0:00:07]}  Kd7 {[%clk 0:00:03]} 34. Rf8 {[%clk 0:00:07]}  Ke7 {[%clk 0:00:02]} 35. Rc8 {[%clk 0:00:06]}  Rxf2 {[%clk 0:00:02]} 36. Bd3 {[%clk 0:00:04]}  Ra2 {[%clk 0:00:01]} 37. Bxe4 {[%clk 0:00:05]}  dxe4 {[%clk 0:00:02]} 38. Rc4 {[%clk 0:00:05]}  f5 {[%clk 0:00:02]} 39. exf6+ {[%clk 0:00:05]}  Kxf6 {[%clk 0:00:03]} 40. Rxe4 {[%clk 0:00:05]}  Kf5 {[%clk 0:00:03]} 41. Rf4+ {[%clk 0:00:05]}  Ke5 {[%clk 0:00:04]} 42. Rb4 {[%clk 0:00:05]}  Ra3 {[%clk 0:00:04]} 43. Kf2 {[%clk 0:00:04]}  Ra2+ {[%clk 0:00:04]} 44. Kf3 {[%clk 0:00:05]}  Rxh2 {[%clk 0:00:04]} 45. Rb5+ {[%clk 0:00:05]}  Kd6 {[%clk 0:00:03]} 46. Ra5 {[%clk 0:00:04]}  Ra2 {[%clk 0:00:03]} 47. Ra6+ {[%clk 0:00:05]}  Ke5 {[%clk 0:00:03]} 48. Ra5+ {[%clk 0:00:05]}  Kf6 {[%clk 0:00:04]} 49. Ra8 {[%clk 0:00:06]}  Ke5 {[%clk 0:00:04]} 50. a5 {[%clk 0:00:06]}  Kf5 {[%clk 0:00:04]} 51. g4+ {[%clk 0:00:06]}  Kg5 {[%clk 0:00:04]} 52. a6 {[%clk 0:00:07]}  e5 {[%clk 0:00:03]} 53. a7 {[%clk 0:00:05]}  Ra4 {[%clk 0:00:03]} 54. Ke2 {[%clk 0:00:04]}  e4 {[%clk 0:00:03]} 55. Re8 {[%clk 0:00:03]}  Ra2+ {[%clk 0:00:03]} 56. Kf1 {[%clk 0:00:03]}  Rxa7 {[%clk 0:00:04]} 57. Rxe4 {[%clk 0:00:03]}  Ra2 {[%clk 0:00:02]} 58. Rd4 {[%clk 0:00:03]}  Rh2 {[%clk 0:00:03]} 59. Kg1 {[%clk 0:00:03]}  Rh4 {[%clk 0:00:03]} 60. Kf2 {[%clk 0:00:03]}  Rxg4 {[%clk 0:00:03]} 61. Rd6 {[%clk 0:00:03]}  Kh5 {[%clk 0:00:03]} 62. Kf3 {[%clk 0:00:03]}  Rg5 {[%clk 0:00:02]} 63. Rd8 {[%clk 0:00:03]}  Rf5+ {[%clk 0:00:03]} 64. Ke4 {[%clk 0:00:03]}  Ra5 {[%clk 0:00:02]} 65. Kf4 {[%clk 0:00:03]}  g5+ {[%clk 0:00:02]} 66. Kf3 {[%clk 0:00:03]}  Rf5+ {[%clk 0:00:02]} 67. Kg3 {[%clk 0:00:03]}  Ra5 {[%clk 0:00:03]} 68. Kf3 {[%clk 0:00:04]}  Kg6 {[%clk 0:00:03]} 69. Rd6+ {[%clk 0:00:04]}  Kh5 {[%clk 0:00:04]} 70. Rb6 {[%clk 0:00:04]}  Rc5 {[%clk 0:00:04]} 71. Kg3 {[%clk 0:00:05]}  Rd5 {[%clk 0:00:03]} 72. Kf3 {[%clk 0:00:05]}  g4+ {[%clk 0:00:03]} 73. Kf4 {[%clk 0:00:05]}  Ra5 {[%clk 0:00:03]} 74. e4 {[%clk 0:00:05]}  Rc5 {[%clk 0:00:02]} 75. Rb1 {[%clk 0:00:05]}  g3 {[%clk 0:00:02]} 76. Rh1+ {[%clk 0:00:05]}  Kg6 {[%clk 0:00:02]} 77. Kxg3 {[%clk 0:00:06]}  Kg5 {[%clk 0:00:03]} 78. Kf3 {[%clk 0:00:06]}  h5 {[%clk 0:00:03]} 79. Rg1+ {[%clk 0:00:07]}  Kf6 {[%clk 0:00:03]} 80. Kf4 {[%clk 0:00:07]}  h4 {[%clk 0:00:03]} 81. Rh1 {[%clk 0:00:07]}  Rh5 {[%clk 0:00:04]} 82. Kg4 {[%clk 0:00:08]}  Rh8 {[%clk 0:00:04]} 83. Kf4 {[%clk 0:00:08]}  Rh7 {[%clk 0:00:04]} 84. e5+ {[%clk 0:00:08]}  Ke6 {[%clk 0:00:04]} 85. Ra1 {[%clk 0:00:08]}  h3 {[%clk 0:00:01]} 86. Rh1 {[%clk 0:00:08]}  h2 {[%clk 0:00:01]} 87. Kg3 {[%clk 0:00:08]}  Kxe5 {[%clk 0:00:01]} 88. Rxh2 {[%clk 0:00:08]}  Rxh2 {[%clk 0:00:02]} 89. Kxh2 {[%clk 0:00:09]} 1/2-1/2

[Event "December 5 Early 2023"]
[Site "https://www.chess.com"]
[Date "2023.12.05"]
[Round "2"]
[White "Leyva Proenza, Richard"]
[Black "Joel Paul Ganta"]
[Result "1-0"]
[Board "202"]
[TimeControl "180+1"]
[WhiteFideId "3500985"]
[BlackFideId "35066145"]
[WhiteElo "2488"]
[BlackElo "2244"]
[WhiteTeam "VEN"]
[BlackTeam "IND"]
[WhiteClock "0:00:30"]
[BlackClock "0:00:00"]

1. e4 {[%clk 0:03:00]}  g6 {[%clk 0:02:47]} 2. d4 {[%clk 0:03:00]}  Bg7 {[%clk 0:02:47]} 3. Nc3 {[%clk 0:03:00]}  d6 {[%clk 0:02:47]} 4. Nf3 {[%clk 0:02:56]}  Nd7 {[%clk 0:02:45]} 5. Be3 {[%clk 0:02:53]}  a6 {[%clk 0:02:46]} 6. a4 {[%clk 0:02:51]}  Ngf6 {[%clk 0:02:45]} 7. h3 {[%clk 0:02:50]}  O-O {[%clk 0:02:45]} 8. Qd2 {[%clk 0:02:45]}  e5 {[%clk 0:02:38]} 9. dxe5 {[%clk 0:02:44]}  Nxe5 {[%clk 0:02:36]} 10. Nxe5 {[%clk 0:02:40]}  dxe5 {[%clk 0:02:36]} 11. Qxd8 {[%clk 0:02:25]}  Rxd8 {[%clk 0:02:35]} 12. Bc4 {[%clk 0:02:25]}  Be6 {[%clk 0:02:06]} 13. Bxe6 {[%clk 0:02:22]}  fxe6 {[%clk 0:02:06]} 14. Ke2 {[%clk 0:02:14]}  Rd7 {[%clk 0:01:46]} 15. Rhd1 {[%clk 0:02:13]}  Rad8 {[%clk 0:01:46]} 16. Rxd7 {[%clk 0:02:13]}  Rxd7 {[%clk 0:01:47]} 17. a5 {[%clk 0:02:07]}  Bf8 {[%clk 0:01:40]} 18. Ra4 {[%clk 0:02:07]}  Kf7 {[%clk 0:01:27]} 19. Na2 {[%clk 0:01:58]}  Ne8 {[%clk 0:01:13]} 20. Nc1 {[%clk 0:01:56]}  Nd6 {[%clk 0:01:11]} 21. Nd3 {[%clk 0:01:56]}  Bg7 {[%clk 0:01:06]} 22. f3 {[%clk 0:01:36]}  Rd8 {[%clk 0:00:53]} 23. Rb4 {[%clk 0:01:30]}  h6 {[%clk 0:00:31]} 24. Nc5 {[%clk 0:01:11]}  Bf8 {[%clk 0:00:15]} 25. Nxb7 {[%clk 0:01:03]}  Re8 {[%clk 0:00:06]} 26. Nxd6+ {[%clk 0:00:53]}  Bxd6 {[%clk 0:00:07]} 27. Rb7 {[%clk 0:00:53]}  g5 {[%clk 0:00:06]} 28. c4 {[%clk 0:00:52]}  Kf6 {[%clk 0:00:04]} 29. b4 {[%clk 0:00:41]}  Rd8 {[%clk 0:00:04]} 30. b5 {[%clk 0:00:33]}  Ra8 {[%clk 0:00:00]} 31. c5 {[%clk 0:00:30]} 1-0

[Event "December 5 Early 2023"]
[Site "https://www.chess.com"]
[Date "2023.12.05"]
[Round "2"]
[White "Deveci, Huseyin Said"]
[Black "Pourkashiyan, Atousa"]
[Result "1-0"]
[Board "203"]
[TimeControl "180+1"]
[WhiteFideId "26322455"]
[BlackFideId "12502014"]
[WhiteElo "2243"]
[BlackElo "2487"]
[WhiteTeam "TUR"]
[BlackTeam "USA"]
[WhiteClock "0:00:06"]
[BlackClock "0:00:20"]

1. e4 {[%clk 0:03:00]}  c5 {[%clk 0:02:51]} 2. Nf3 {[%clk 0:02:57]}  e6 {[%clk 0:02:48]} 3. d4 {[%clk 0:02:56]}  cxd4 {[%clk 0:02:47]} 4. Nxd4 {[%clk 0:02:57]}  a6 {[%clk 0:02:47]} 5. c4 {[%clk 0:02:56]}  Nf6 {[%clk 0:02:44]} 6. Nc3 {[%clk 0:02:56]}  Qc7 {[%clk 0:02:39]} 7. a3 {[%clk 0:02:46]}  b6 {[%clk 0:02:38]} 8. Bd3 {[%clk 0:02:42]}  Bb7 {[%clk 0:02:35]} 9. O-O {[%clk 0:02:42]}  Bd6 {[%clk 0:02:23]} 10. h3 {[%clk 0:02:37]}  Bh2+ {[%clk 0:01:51]} 11. Kh1 {[%clk 0:02:37]}  Bf4 {[%clk 0:01:52]} 12. Qf3 {[%clk 0:02:15]}  Bxc1 {[%clk 0:01:47]} 13. Raxc1 {[%clk 0:02:16]}  O-O {[%clk 0:01:47]} 14. Qe3 {[%clk 0:02:09]}  Nc6 {[%clk 0:01:46]} 15. f4 {[%clk 0:02:07]}  d6 {[%clk 0:01:42]} 16. Nf3 {[%clk 0:02:05]}  Rfd8 {[%clk 0:01:39]} 17. e5 {[%clk 0:02:02]}  Nh5 {[%clk 0:01:36]} 18. Ng5 {[%clk 0:01:56]}  g6 {[%clk 0:01:34]} 19. Nd5 {[%clk 0:01:52]}  exd5 {[%clk 0:01:11]} 20. cxd5 {[%clk 0:01:53]}  Qd7 {[%clk 0:01:11]} 21. dxc6 {[%clk 0:01:34]}  Bxc6 {[%clk 0:01:12]} 22. f5 {[%clk 0:01:26]}  dxe5 {[%clk 0:01:08]} 23. fxg6 {[%clk 0:01:25]}  hxg6 {[%clk 0:00:58]} 24. Nxf7 {[%clk 0:00:19]}  Qxd3 {[%clk 0:00:50]} 25. Nh6+ {[%clk 0:00:17]}  Kh7 {[%clk 0:00:47]} 26. Rf7+ {[%clk 0:00:17]}  Ng7 {[%clk 0:00:47]} 27. Qxd3 {[%clk 0:00:07]}  Rxd3 {[%clk 0:00:47]} 28. Ng4 {[%clk 0:00:08]}  Rc8 {[%clk 0:00:31]} 29. Nf6+ {[%clk 0:00:08]}  Kh8 {[%clk 0:00:31]} 30. Kh2 {[%clk 0:00:06]}  Rd2 {[%clk 0:00:30]} 31. Rxc6 {[%clk 0:00:06]}  Rdd8 {[%clk 0:00:20]} 32. Rxc8 {[%clk 0:00:06]}  Rxc8 {[%clk 0:00:21]} 33. Rb7 {[%clk 0:00:07]}  Nf5 {[%clk 0:00:20]} 34. Rh7# {[%clk 0:00:06]} 1-0

[Event "December 5 Early 2023"]
[Site "https://www.chess.com"]
[Date "2023.12.05"]
[Round "2"]
[White "Dyulgerov, Volen"]
[Black "Kovalevsky, Stanislav"]
[Result "0-1"]
[Board "205"]
[TimeControl "180+1"]
[WhiteFideId "2918978"]
[BlackFideId "13508598"]
[WhiteElo "2233"]
[BlackElo "2487"]
[WhiteTeam "BUL"]
[BlackTeam "FID"]
[WhiteClock "0:00:02"]
[BlackClock "0:00:14"]

1. e4 {[%clk 0:03:00]}  c6 {[%clk 0:02:51]} 2. d4 {[%clk 0:03:00]}  d5 {[%clk 0:02:52]} 3. Nd2 {[%clk 0:03:01]}  dxe4 {[%clk 0:02:49]} 4. Nxe4 {[%clk 0:03:02]}  Nf6 {[%clk 0:02:50]} 5. Ng5 {[%clk 0:03:02]}  g6 {[%clk 0:02:48]} 6. h4 {[%clk 0:02:52]}  Bg7 {[%clk 0:02:45]} 7. h5 {[%clk 0:02:51]}  Nxh5 {[%clk 0:02:43]} 8. Rxh5 {[%clk 0:02:52]}  gxh5 {[%clk 0:02:43]} 9. Qxh5 {[%clk 0:02:53]}  Qd5 {[%clk 0:02:41]} 10. c4 {[%clk 0:02:18]}  Qf5 {[%clk 0:02:39]} 11. Bd3 {[%clk 0:02:05]}  Qxd3 {[%clk 0:02:05]} 12. Qxf7+ {[%clk 0:02:04]}  Kd8 {[%clk 0:02:04]} 13. Qxg7 {[%clk 0:01:59]}  Re8 {[%clk 0:02:03]} 14. Nf7+ {[%clk 0:01:53]}  Kc7 {[%clk 0:01:55]} 15. Bf4+ {[%clk 0:01:33]}  Kb6 {[%clk 0:01:52]} 16. Qe5 {[%clk 0:01:20]}  Nd7 {[%clk 0:01:38]} 17. Qc7+ {[%clk 0:00:43]}  Ka6 {[%clk 0:01:36]} 18. Ne2 {[%clk 0:00:38]}  Qxc4 {[%clk 0:01:26]} 19. Ng5 {[%clk 0:00:15]}  Nb6 {[%clk 0:01:07]} 20. Rc1 {[%clk 0:00:13]}  Qb4+ {[%clk 0:00:58]} 21. Bd2 {[%clk 0:00:13]}  Nd5 {[%clk 0:00:43]} 22. Qe5 {[%clk 0:00:03]}  Qxb2 {[%clk 0:00:41]} 23. Ne4 {[%clk 0:00:03]}  b6 {[%clk 0:00:38]} 24. Qc7 {[%clk 0:00:03]}  Bf5 {[%clk 0:00:18]} 25. Nc5+ {[%clk 0:00:03]}  bxc5 {[%clk 0:00:18]} 26. Rxc5 {[%clk 0:00:02]}  Qb1+ {[%clk 0:00:13]} 27. Nc1 {[%clk 0:00:02]}  Nb6 {[%clk 0:00:13]} 28. Rxc6 {[%clk 0:00:01]}  Rac8 {[%clk 0:00:11]} 29. Rxb6+ {[%clk 0:00:02]}  axb6 {[%clk 0:00:11]} 30. Qe5 {[%clk 0:00:02]}  Rxc1+ {[%clk 0:00:11]} 31. Bxc1 {[%clk 0:00:02]}  Qxc1+ {[%clk 0:00:12]} 32. Ke2 {[%clk 0:00:03]}  Qc2+ {[%clk 0:00:13]} 33. Kf3 {[%clk 0:00:03]}  Qd3+ {[%clk 0:00:13]} 34. Kf4 {[%clk 0:00:02]}  Qe4+ {[%clk 0:00:14]} 0-1

[Event "December 5 Early 2023"]
[Site "https://www.chess.com"]
[Date "2023.12.05"]
[Round "2"]
[White "Kopczynski, Michal"]
[Black "NastyaHn"]
[Result "1-0"]
[Board "206"]
[TimeControl "180+1"]
[WhiteFideId "1124200"]
[WhiteElo "2485"]
[BlackElo "2231"]
[WhiteTeam "POL"]
[WhiteClock "0:00:30"]
[BlackClock "0:00:00"]

1. e4 {[%clk 0:03:00]}  c5 {[%clk 0:02:55]} 2. d4 {[%clk 0:03:00]}  cxd4 {[%clk 0:02:55]} 3. c3 {[%clk 0:03:01]}  d5 {[%clk 0:02:52]} 4. exd5 {[%clk 0:03:00]}  Qxd5 {[%clk 0:02:51]} 5. cxd4 {[%clk 0:03:01]}  Nc6 {[%clk 0:02:51]} 6. Nf3 {[%clk 0:03:02]}  Bg4 {[%clk 0:02:51]} 7. Be2 {[%clk 0:03:03]}  Nf6 {[%clk 0:02:50]} 8. Nc3 {[%clk 0:03:03]}  Qd8 {[%clk 0:02:48]} 9. d5 {[%clk 0:02:58]}  Nb8 {[%clk 0:02:42]} 10. Qb3 {[%clk 0:02:54]}  Nbd7 {[%clk 0:02:20]} 11. Bf4 {[%clk 0:02:49]}  Qb6 {[%clk 0:02:01]} 12. Nb5 {[%clk 0:02:29]}  Rc8 {[%clk 0:01:56]} 13. Nc7+ {[%clk 0:02:06]}  Kd8 {[%clk 0:01:45]} 14. Nb5 {[%clk 0:01:54]}  a6 {[%clk 0:01:37]} 15. Be3 {[%clk 0:01:54]}  Qa5+ {[%clk 0:01:35]} 16. Bd2 {[%clk 0:01:53]}  Qb6 {[%clk 0:01:34]} 17. Qa3 {[%clk 0:01:46]}  Ke8 {[%clk 0:01:25]} 18. Ba5 {[%clk 0:01:42]}  Qc5 {[%clk 0:01:07]} 19. b4 {[%clk 0:01:30]}  Qxd5 {[%clk 0:00:38]} 20. Nc7+ {[%clk 0:01:30]}  Rxc7 {[%clk 0:00:38]} 21. Bxc7 {[%clk 0:01:31]}  e5 {[%clk 0:00:20]} 22. O-O {[%clk 0:01:30]}  e4 {[%clk 0:00:19]} 23. Rfd1 {[%clk 0:01:28]}  Qh5 {[%clk 0:00:14]} 24. h3 {[%clk 0:01:15]}  Bxf3 {[%clk 0:00:10]} 25. Bxf3 {[%clk 0:01:14]}  exf3 {[%clk 0:00:10]} 26. Qxf3 {[%clk 0:01:15]}  Qxf3 {[%clk 0:00:09]} 27. gxf3 {[%clk 0:01:16]}  Bxb4 {[%clk 0:00:09]} 28. Rab1 {[%clk 0:01:13]}  a5 {[%clk 0:00:07]} 29. a3 {[%clk 0:01:11]}  Bxa3 {[%clk 0:00:07]} 30. Re1+ {[%clk 0:01:08]}  Kf8 {[%clk 0:00:05]} 31. Rxb7 {[%clk 0:01:09]}  Bb4 {[%clk 0:00:02]} 32. Ra1 {[%clk 0:01:00]}  g6 {[%clk 0:00:02]} 33. Bxa5 {[%clk 0:00:40]}  Bxa5 {[%clk 0:00:02]} 34. Rxa5 {[%clk 0:00:41]}  Kg7 {[%clk 0:00:03]} 35. Raa7 {[%clk 0:00:42]}  Re8 {[%clk 0:00:03]} 36. f4 {[%clk 0:00:41]}  Re4 {[%clk 0:00:03]} 37. f5 {[%clk 0:00:41]}  gxf5 {[%clk 0:00:03]} 38. Kg2 {[%clk 0:00:41]}  Rh4 {[%clk 0:00:02]} 39. Rb5 {[%clk 0:00:40]}  f4 {[%clk 0:00:02]} 40. Rf5 {[%clk 0:00:38]}  Kg6 {[%clk 0:00:01]} 41. Rfa5 {[%clk 0:00:36]}  Rh5 {[%clk 0:00:02]} 42. Rxh5 {[%clk 0:00:32]}  Kxh5 {[%clk 0:00:02]} 43. Kf3 {[%clk 0:00:33]}  Kg5 {[%clk 0:00:02]} 44. Ra5+ {[%clk 0:00:32]}  Kg6 {[%clk 0:00:02]} 45. Kxf4 {[%clk 0:00:32]}  Nh5+ {[%clk 0:00:02]} 46. Kg4 {[%clk 0:00:31]}  Ndf6+ {[%clk 0:00:03]} 47. Kh4 {[%clk 0:00:31]}  Ng7 {[%clk 0:00:03]} 48. Rg5+ {[%clk 0:00:30]}  Kh6 {[%clk 0:00:03]} 49. Ra5 {[%clk 0:00:29]}  Kg6 {[%clk 0:00:03]} 50. Kg3 {[%clk 0:00:30]}  Nf5+ {[%clk 0:00:00]} 51. Kf4 {[%clk 0:00:30]} 1-0

[Event "December 5 Early 2023"]
[Site "https://www.chess.com"]
[Date "2023.12.05"]
[Round "2"]
[White "ibove"]
[Black "Filali, Razzouki Marouane"]
[Result "0-1"]
[Board "207"]
[TimeControl "180+1"]
[BlackFideId "9003720"]
[WhiteElo "2223"]
[BlackElo "2484"]
[BlackTeam "MAR"]
[WhiteClock "0:00:06"]
[BlackClock "0:00:12"]

1. e4 {[%clk 0:02:17]}  c6 {[%clk 0:02:48]} 2. c4 {[%clk 0:02:11]}  d5 {[%clk 0:02:49]} 3. exd5 {[%clk 0:02:12]}  cxd5 {[%clk 0:02:50]} 4. d4 {[%clk 0:02:11]}  Nf6 {[%clk 0:02:50]} 5. Nc3 {[%clk 0:02:11]}  dxc4 {[%clk 0:02:47]} 6. Bxc4 {[%clk 0:02:11]}  e6 {[%clk 0:02:47]} 7. Nf3 {[%clk 0:02:11]}  Bd6 {[%clk 0:02:44]} 8. O-O {[%clk 0:02:09]}  O-O {[%clk 0:02:44]} 9. Bg5 {[%clk 0:02:08]}  a6 {[%clk 0:02:43]} 10. Qd3 {[%clk 0:02:05]}  Re8 {[%clk 0:02:33]} 11. Rfd1 {[%clk 0:02:02]}  Nbd7 {[%clk 0:02:32]} 12. Bb3 {[%clk 0:02:01]}  Nf8 {[%clk 0:02:29]} 13. Rac1 {[%clk 0:01:58]}  b5 {[%clk 0:02:26]} 14. Ne4 {[%clk 0:01:49]}  Be7 {[%clk 0:02:25]} 15. Nc5 {[%clk 0:01:48]}  Ng6 {[%clk 0:02:16]} 16. h4 {[%clk 0:01:44]}  Nd5 {[%clk 0:02:08]} 17. g3 {[%clk 0:01:30]}  Bf6 {[%clk 0:01:36]} 18. a4 {[%clk 0:01:22]}  Rb8 {[%clk 0:01:31]} 19. Re1 {[%clk 0:01:05]}  h6 {[%clk 0:01:27]} 20. Bxf6 {[%clk 0:01:03]}  Nxf6 {[%clk 0:01:17]} 21. d5 {[%clk 0:00:56]}  Nxd5 {[%clk 0:00:57]} 22. Bxd5 {[%clk 0:00:52]}  exd5 {[%clk 0:00:57]} 23. Rxe8+ {[%clk 0:00:52]}  Qxe8 {[%clk 0:00:57]} 24. Qxd5 {[%clk 0:00:52]}  Bg4 {[%clk 0:00:52]} 25. Re1 {[%clk 0:00:49]}  Qd8 {[%clk 0:00:45]} 26. Qe4 {[%clk 0:00:43]}  Qc8 {[%clk 0:00:35]} 27. Nd3 {[%clk 0:00:36]}  Bf5 {[%clk 0:00:34]} 28. Qd5 {[%clk 0:00:32]}  Be6 {[%clk 0:00:32]} 29. Qe4 {[%clk 0:00:32]}  bxa4 {[%clk 0:00:32]} 30. Nfe5 {[%clk 0:00:32]}  Nxe5 {[%clk 0:00:31]} 31. Nxe5 {[%clk 0:00:32]}  Rxb2 {[%clk 0:00:30]} 32. Rd1 {[%clk 0:00:30]}  Rc2 {[%clk 0:00:26]} 33. Qxa4 {[%clk 0:00:26]}  Rc1 {[%clk 0:00:25]} 34. Kh2 {[%clk 0:00:24]}  Rxd1 {[%clk 0:00:24]} 35. Qxd1 {[%clk 0:00:25]}  Qc5 {[%clk 0:00:22]} 36. Nd3 {[%clk 0:00:24]}  Qd4 {[%clk 0:00:21]} 37. Qe2 {[%clk 0:00:10]}  a5 {[%clk 0:00:20]} 38. Nf4 {[%clk 0:00:10]}  Bd7 {[%clk 0:00:12]} 39. Qe7 {[%clk 0:00:09]}  a4 {[%clk 0:00:10]} 40. Qd8+ {[%clk 0:00:10]}  Kh7 {[%clk 0:00:10]} 41. Qa5 {[%clk 0:00:10]}  Qd6 {[%clk 0:00:09]} 42. Qc3 {[%clk 0:00:08]}  f6 {[%clk 0:00:09]} 43. Qc2+ {[%clk 0:00:09]}  f5 {[%clk 0:00:09]} 44. Qc1 {[%clk 0:00:10]}  Qd4 {[%clk 0:00:08]} 45. Ne2 {[%clk 0:00:10]}  Qxf2+ {[%clk 0:00:09]} 46. Kh1 {[%clk 0:00:10]}  f4 {[%clk 0:00:09]} 47. Qb1+ {[%clk 0:00:11]}  Kg8 {[%clk 0:00:08]} 48. Nxf4 {[%clk 0:00:12]}  Qf3+ {[%clk 0:00:09]} 49. Kh2 {[%clk 0:00:12]}  Qf2+ {[%clk 0:00:09]} 50. Ng2 {[%clk 0:00:10]}  Bc6 {[%clk 0:00:09]} 51. Qg1 {[%clk 0:00:11]}  Qxg2+ {[%clk 0:00:09]} 52. Qxg2 {[%clk 0:00:12]}  Bxg2 {[%clk 0:00:09]} 53. Kxg2 {[%clk 0:00:13]}  a3 {[%clk 0:00:10]} 54. Kf3 {[%clk 0:00:04]}  a2 {[%clk 0:00:11]} 55. Ke4 {[%clk 0:00:05]}  a1=Q {[%clk 0:00:11]} 56. Kd5 {[%clk 0:00:06]}  Qg1 {[%clk 0:00:11]} 57. g4 {[%clk 0:00:06]}  Qxg4 {[%clk 0:00:11]} 58. h5 {[%clk 0:00:07]}  Qxh5+ {[%clk 0:00:11]} 59. Ke6 {[%clk 0:00:08]}  Qf7+ {[%clk 0:00:12]} 60. Kd6 {[%clk 0:00:06]}  h5 {[%clk 0:00:12]} 0-1

[Event "December 5 Early 2023"]
[Site "https://www.chess.com"]
[Date "2023.12.05"]
[Round "2"]
[White "Verbin, Valentina"]
[Black "Grochal, Joey"]
[Result "0-1"]
[Board "208"]
[TimeControl "180+1"]
[WhiteFideId "13905910"]
[BlackFideId "1019945"]
[WhiteElo "2221"]
[BlackElo "2484"]
[WhiteTeam "MDA"]
[BlackTeam "NED"]
[WhiteClock "0:00:00"]
[BlackClock "0:00:11"]

1. c4 {[%clk 0:02:59]}  g6 {[%clk 0:02:56]} 2. Nc3 {[%clk 0:02:56]}  Bg7 {[%clk 0:02:55]} 3. g3 {[%clk 0:02:56]}  Nf6 {[%clk 0:02:54]} 4. Bg2 {[%clk 0:02:56]}  c6 {[%clk 0:02:51]} 5. e3 {[%clk 0:02:55]}  d5 {[%clk 0:02:50]} 6. cxd5 {[%clk 0:02:52]}  cxd5 {[%clk 0:02:50]} 7. Nge2 {[%clk 0:02:52]}  Nc6 {[%clk 0:02:50]} 8. O-O {[%clk 0:02:47]}  e5 {[%clk 0:02:48]} 9. d4 {[%clk 0:02:45]}  e4 {[%clk 0:02:47]} 10. f3 {[%clk 0:02:38]}  exf3 {[%clk 0:02:45]} 11. Bxf3 {[%clk 0:02:38]}  O-O {[%clk 0:02:38]} 12. Nf4 {[%clk 0:02:38]}  Be6 {[%clk 0:02:38]} 13. Qb3 {[%clk 0:02:19]}  Na5 {[%clk 0:02:37]} 14. Qa4 {[%clk 0:02:14]}  Rc8 {[%clk 0:02:27]} 15. Nxe6 {[%clk 0:01:37]}  fxe6 {[%clk 0:02:26]} 16. Ne2 {[%clk 0:01:37]}  a6 {[%clk 0:02:10]} 17. Nf4 {[%clk 0:01:35]}  Re8 {[%clk 0:02:07]} 18. b3 {[%clk 0:01:27]}  Bf8 {[%clk 0:01:49]} 19. Bd2 {[%clk 0:01:24]}  Nc6 {[%clk 0:01:34]} 20. Rac1 {[%clk 0:01:23]}  Nd7 {[%clk 0:01:12]} 21. Bg4 {[%clk 0:01:17]}  Nb6 {[%clk 0:01:12]} 22. Nxe6 {[%clk 0:01:08]}  Rxe6 {[%clk 0:01:04]} 23. Bxe6+ {[%clk 0:01:08]}  Kg7 {[%clk 0:01:03]} 24. Rf7+ {[%clk 0:01:03]}  Kh8 {[%clk 0:01:02]} 25. Bxc8 {[%clk 0:00:37]}  Nxa4 {[%clk 0:01:01]} 26. Bxb7 {[%clk 0:00:37]}  Ne7 {[%clk 0:00:40]} 27. bxa4 {[%clk 0:00:36]}  Kg8 {[%clk 0:00:34]} 28. Rcf1 {[%clk 0:00:35]}  Bh6 {[%clk 0:00:32]} 29. g4 {[%clk 0:00:32]}  Qd7 {[%clk 0:00:26]} 30. Bxd5 {[%clk 0:00:23]}  Qxg4+ {[%clk 0:00:18]} 31. Bg2 {[%clk 0:00:19]}  Nf5 {[%clk 0:00:18]} 32. Rf3 {[%clk 0:00:10]}  Kxf7 {[%clk 0:00:15]} 33. h3 {[%clk 0:00:07]}  Qe4 {[%clk 0:00:13]} 34. Rf1 {[%clk 0:00:04]}  Qd3 {[%clk 0:00:13]} 35. e4 {[%clk 0:00:01]}  Qxd4+ {[%clk 0:00:12]} 36. Kh1 {[%clk 0:00:01]}  Bxd2 {[%clk 0:00:12]} 37. exf5 {[%clk 0:00:02]}  g5 {[%clk 0:00:12]} 38. f6 {[%clk 0:00:02]}  Bf4 {[%clk 0:00:11]} 39. Bf3 {[%clk 0:00:01]}  Kxf6 {[%clk 0:00:11]} 40. Bg4 {[%clk 0:00:00]}  Qe3 {[%clk 0:00:11]} 0-1

[Event "December 5 Early 2023"]
[Site "https://www.chess.com"]
[Date "2023.12.05"]
[Round "2"]
[White "Chemin, Justo Reinaldo"]
[Black "Sroczynski, Maciej"]
[Result "1-0"]
[Board "212"]
[TimeControl "180+1"]
[WhiteFideId "2101580"]
[BlackFideId "1121472"]
[WhiteElo "2208"]
[BlackElo "2479"]
[WhiteTeam "BRA"]
[BlackTeam "POL"]
[WhiteClock "0:01:22"]
[BlackClock "0:01:24"]

1. e4 {[%clk 0:03:00]}  c5 {[%clk 0:02:58]} 2. Nf3 {[%clk 0:03:00]}  e6 {[%clk 0:02:58]} 3. d3 {[%clk 0:02:58]}  d5 {[%clk 0:02:54]} 4. Nbd2 {[%clk 0:02:56]}  Nc6 {[%clk 0:02:53]} 5. g3 {[%clk 0:02:56]}  Nf6 {[%clk 0:02:53]} 6. Bg2 {[%clk 0:02:56]}  Be7 {[%clk 0:02:53]} 7. O-O {[%clk 0:02:56]}  O-O {[%clk 0:02:52]} 8. h4 {[%clk 0:02:54]}  b5 {[%clk 0:02:51]} 9. Nh2 {[%clk 0:02:35]}  a5 {[%clk 0:02:50]} 10. f4 {[%clk 0:02:31]}  dxe4 {[%clk 0:02:45]} 11. dxe4 {[%clk 0:02:20]}  c4 {[%clk 0:02:39]} 12. e5 {[%clk 0:02:16]}  Nd5 {[%clk 0:02:38]} 13. Ne4 {[%clk 0:02:15]}  Qb6+ {[%clk 0:02:38]} 14. Kh1 {[%clk 0:02:13]}  Bb7 {[%clk 0:02:34]} 15. Qh5 {[%clk 0:02:05]}  Ne3 {[%clk 0:02:08]} 16. Bxe3 {[%clk 0:01:38]}  Qxe3 {[%clk 0:02:07]} 17. Ng4 {[%clk 0:01:37]}  Qb6 {[%clk 0:01:58]} 18. Ngf6+ {[%clk 0:01:29]}  gxf6 {[%clk 0:01:48]} 19. exf6 {[%clk 0:01:28]}  Bxf6 {[%clk 0:01:28]} 20. Nxf6+ {[%clk 0:01:27]}  Kg7 {[%clk 0:01:28]} 21. Qg5+ {[%clk 0:01:26]}  Kh8 {[%clk 0:01:24]} 22. Qh6 {[%clk 0:01:22]} 1-0